{"text_format":"1","workbook":"xlsx","n_sheets":2,"sheets":["ورقة1","شهادات"],"not_rendered":{"charts":0,"images":0,"macros":1,"external_links":0,"defined_names":0,"comments":0,"pivot_tables":0},"unopened":[],"bounds":{"document_bytes":16777216,"sheet_cells":100000,"rows_first":2000,"rows_last":500,"rows_between":2000,"halvings":0,"cell_chars":16384,"cell_head_chars":4096},"cells_cut":0,"cells_raw":0,"read":"whole","date_system":"1900"}

{"sheet":"ورقة1","index":0,"n_rows":38,"n_cols":8,"rows_kept":38,"cut":false,"hidden":false,"merged":[[9,2,10,2],[9,1,10,1],[9,0,10,0]]}
[]
["محافظة الدقهلية",null,"بيان بدرجات الترم الأول لطلبة الجدارات للصف الثاني\n"]
["مديرية التربية والتعليم بالدقهلية"]
["إدارة شرق المنصورة التعليمية"]
["مدرسة .سلامون الثانوية الصناعية العسكرية بنين",null,"فني صيانة وإصلاح السيارات"]
["كنترول المدرسة"]
[null,null,"درجات نصف العام لكل طالب"]
[]
[]
["م","اسم الطالب","رقم الجلوس","اللغة العربية ","اللغة الانجليزية ","الرياضيات العامة ","الفيزياء العامة ","تربية دينية"]
[null,null,null,25,20,25,20,10]
[1,"ابراهيم حماده محمد ابراهيم يوسف",674,14,11,14,12,9]
[2,"احمد ايمن فاروق ابراهيم الشربينى",675,14,13,14,15,9]
[3,"احمد جمال احمد محمد منصور",676,15,12,14,15,9]
[4,"احمد طارق عبدالحكم احمد العسوى العدل",677,15,13,14,15,9]
[5,"احمد محمد محمود ابراهيم الطلحاوى",678,15,13,14,14,9]
[6,"اشرف محمد عبدالرازق محمد المتولى",679,14,12,14,13,9]
[7,"جمال مجدى عبدده الباز عوض",680,15,14,13,6,8]
[8,"حامد احمد احمد ابراهيم شبكه",681,15,14,13,16,9]
[9,"خالد الشحات محمد رمضان الحسينى",682,15,13,13,12,9]
[10,"زياد مصطفى محمد احمد مصطفى",683,14,14,14,12,9]
[11,"زياد هلال سمير هلال محمد يوسف",684,14,14,14,8,8]
[12,"سعد محمد سعد رجب مصطفى",685,16,12,12,10,9]
[13,"على رزق سليمان رزق محمد",686,15,14,14,9,10]
[14,"عمر احمد محمود ابراهيم حماد",687,15,9,14,9,9]
[15,"عمرو خالد محمد محمود عبدالرحمن",688,14,10,13,9,8]
[16,"فارس علاء عزمى ابوريه عبدالجواد",689,14,10,14,9,9]
[17,"كريم احمد عوض احمد محمود القناوى",690,15,12,14,9,9]
[18,"كريم محمد البلقينى عبدالحميد بدوى فضل",691,15,12,14,9,9]
[19,"محمد سعد الشحات عطيه عطا",692,15,12,12,11,9]
[20,"محمد عبدالسلام شوقى عبدالسلام كشك",693,14,12,11,11,9]
[21,"محمد عطيه محمد خميس عنان",694,0,0,0,0,0]
[22,"محمد معتز ابراهيم السعيد المتولى",695,15,12,15,16,8]
[23,"محمد هانى على السيد العرابى",696,15,12,13,14,6]
[24,"محمود اسعد فتحى عوض حسن",697,15,11,12,16,9]
[25,"مصطفى السيد عبدالعظيم عبدالحميد محمد",698,15,11,13,16,8]
[26,0,0,0,0,0,0,0]
[27,0,0,0,0,0,0,0]

{"sheet":"شهادات","index":1,"n_rows":41,"n_cols":21,"rows_kept":41,"cut":false,"hidden":false,"merged":[[39,4,39,5],[40,4,40,5],[33,6,35,6],[33,7,35,8],[36,7,36,8],[37,7,37,8],[38,7,38,8],[32,2,32,5],[33,1,35,1],[33,2,35,2],[33,3,35,3],[33,4,35,4],[33,5,35,5],[25,4,25,5],[26,4,26,5],[28,1,28,3],[29,1,29,6],[31,1,31,7],[19,6,21,6],[19,7,21,8],[22,7,22,8],[23,7,23,8],[24,7,24,8],[18,2,18,5],[19,1,21,1],[19,2,21,2],[19,3,21,3],[19,4,21,4],[19,5,21,5],[4,2,4,5],[1,1,1,6],[5,1,7,1],[5,2,7,2],[0,1,0,3],[3,1,3,7],[5,7,7,8],[15,1,15,6],[17,1,17,7],[14,1,14,3],[5,3,7,3],[5,4,7,4],[5,5,7,5],[5,6,7,6],[10,7,10,8],[11,4,11,5],[12,4,12,5],[8,7,8,8],[9,7,9,8]]}
[null,"إدارة شرق المنصورة العليمية",null,null,1]
[null," مدرسة سلامون الثانوية الصناعية بنين.  ",null,null,null,null,null,null,null,null,null,null,null,null,null,null,null,null,null,null,2]
[]
[null,"                                &( بيان درجات الطالب في امتحان الترم الأول للعام (2023 / 2024 )&"]
[null,"اسم الطالب / ",{"$f":"VLOOKUP(E1,ورقة1!A12:H40,2,FALSE)","v":"ابراهيم حماده محمد ابراهيم يوسف"},null,null,null,null,"رقم الجلوس",{"$f":"VLOOKUP(E1,ورقة1!A12:H40,3,FALSE)","v":674}]
[null,"المادة","لغة عربية","لغة أجنبية","الرياضيات","الفيزياء","التربية الدينية","المجموع"]
[]
[]
[null,"كبرى",25,20,25,20,10,100]
[null,"صغرى",13,10,13,10,5,50]
[null,"الدرجة",{"$f":"VLOOKUP(E1,ورقة1!A12:H40,4,FALSE)","v":14},{"$f":"VLOOKUP(E1,ورقة1!A12:H40,5,FALSE)","v":11},{"$f":"VLOOKUP(E1,ورقة1!A12:H40,6,FALSE)","v":14},{"$f":"VLOOKUP(E1,ورقة1!A12:H40,7,FALSE)","v":12},{"$f":"VLOOKUP(E1,ورقة1!A12:H40,8,FALSE)","v":9},{"$f":"SUM(C11:G11)","v":60}]
[null,"رئيس كنترول الصــــف الثاني",null,null,"رئيس لجنة النظام والمراقبة",null,null,"يعتمد ، مدير المدرسة"]
[null,"م/ أحمد الدسوقي ابراهيم",null,null,"م/محمود اسماعيل عبد الفتاح",null,null,"م  / مصطفى السيد عبد المجيد"]
[]
[null,"إدارة شرق المنصورة العليمية",null,null,{"$f":"E1+1","v":2}]
[null," مدرسة سلامون الثانوية الصناعية بنين.  "]
[]
[null,"                                &( بيان درجات الطالب في امتحان الترم الأول للعام (2023 / 2024 )&"]
[null,"اسم الطالب / ",{"$f":"VLOOKUP(E15,ورقة1!A12:H40,2,FALSE)","v":"احمد ايمن فاروق ابراهيم الشربينى"},null,null,null,null,"رقم الجلوس",{"$f":"VLOOKUP(E15,ورقة1!A12:H40,3,FALSE)","v":675}]
[null,"المادة","لغة عربية","لغة أجنبية","الرياضيات","الفيزياء","التربية الدينية","المجموع"]
[]
[]
[null,"كبرى",25,20,25,20,10,100]
[null,"صغرى",13,10,13,10,5,50]
[null,"الدرجة",{"$f":"VLOOKUP(E15,ورقة1!A12:H40,4,FALSE)","v":14},{"$f":"VLOOKUP(E15,ورقة1!A12:H40,5,FALSE)","v":13},{"$f":"VLOOKUP(E15,ورقة1!A12:H40,6,FALSE)","v":14},{"$f":"VLOOKUP(E15,ورقة1!A12:H40,7,FALSE)","v":15},{"$f":"VLOOKUP(E15,ورقة1!A12:H40,8,FALSE)","v":9},{"$f":"SUM(C25:G25)","v":65}]
[null,"رئيس كنترول الصــــف الثاني",null,null,"رئيس لجنة النظام والمراقبة",null,null,"يعتمد ، مدير المدرسة"]
[null,"م/ أحمد الدسوقي ابراهيم",null,null,"م/محمود اسماعيل عبد الفتاح",null,null,"م  / مصطفى السيد عبد المجيد"]
[]
[null,"إدارة شرق المنصورة العليمية",null,null,{"$f":"E15+1","v":3}]
[null," مدرسة سلامون الثانوية الصناعية بنين.  "]
[]
[null,"                                &( بيان درجات الطالب في امتحان الترم الأول للعام (2023 / 2024 )&"]
[null,"اسم الطالب / ",{"$f":"VLOOKUP(E29,ورقة1!A12:H40,2,FALSE)","v":"احمد جمال احمد محمد منصور"},null,null,null,null,"رقم الجلوس",{"$f":"VLOOKUP(E29,ورقة1!A12:H40,3,FALSE)","v":676}]
[null,"المادة","لغة عربية","لغة أجنبية","الرياضيات","الفيزياء","التربية الدينية","المجموع"]
[]
[]
[null,"كبرى",25,20,25,20,10,100]
[null,"صغرى",13,10,13,10,5,50]
[null,"الدرجة",{"$f":"VLOOKUP(E29,ورقة1!A12:H40,4,FALSE)","v":15},{"$f":"VLOOKUP(E29,ورقة1!A12:H40,5,FALSE)","v":12},{"$f":"VLOOKUP(E29,ورقة1!A12:H40,6,FALSE)","v":14},{"$f":"VLOOKUP(E29,ورقة1!A12:H40,7,FALSE)","v":15},{"$f":"VLOOKUP(E29,ورقة1!A12:H40,8,FALSE)","v":9},{"$f":"SUM(C39:G39)","v":65}]
[null,"رئيس كنترول الصــــف الثاني",null,null,"رئيس لجنة النظام والمراقبة",null,null,"يعتمد ، مدير المدرسة"]
[null,"م/ أحمد الدسوقي ابراهيم",null,null,"م/محمود اسماعيل عبد الفتاح",null,null,"م  / مصطفى السيد عبد المجيد"]